Cogmind - Beta 9.3 @@@ ROGUE MODE // 2020.01.17 @ 14:12:25 // Winter2019/RPGLIKE Player: badjay Result: Destroyed by Y-45 Defender with Heavy Assault Rifle Performance ------------- Evolutions (1) 500 Regions Visited (3) 600 Robots Destroyed (53) 265 Value Destroyed (1086) 1086 Prototype IDs (8) 160 Alien Tech Used (0) 0 Bonus (91) 91 TOTAL SCORE: 2702 Bonus ------- High Alert Combat Kills 91 Cogmind --------- Core Integrity 0/600 Matter 114/300 Energy 123/125 System Corruption 0% Temperature Cool (11) Movement Flying (37) Location -9/Materials Parts ------- > --- POWER (1) -------- Light Ion Engine > --- PROPULSION (2) --- Flight Unit Flight Unit > --- UTILITY (3) ------ Salvage Targeting Computer Salvage Targeting Computer Targeting Computer > --- WEAPON (2) ------- Grenade Launcher > --- INVENTORY (0) ---- (None) Peak State ------------ > --- POWER ------------ Light Ion Engine > --- PROPULSION ------- Flight Unit Flight Unit > --- UTILITY ---------- Salvage Targeting Computer Salvage Targeting Computer Targeting Computer > --- WEAPON ----------- EM Pulse Gun Grenade Launcher > --- INVENTORY -------- (None) [Rating: 10] Favorites ----------- Power Light Ion Engine Engine Light Ion Engine Propulsion Flight Unit Flight Unit Flight Unit Utility Targeting Computer Processor Targeting Computer Weapon Grenade Launcher Energy Gun EM Pulse Gun Launcher Grenade Launcher Build | -11 -10 -10 -9 ------- Run | Scr Mat Min Mat Slots Evolved 4 | . . 2 2 Power . | . . . . Propulsion 1 | . . 1 . Utility 2 | . . . 2 Weapon 1 | . . 1 . Parts Attached 10 | . 4 3 3 Power 2 | . 1 . 1 Engine 2 | . 1 . 1 Core . | . . . . Reactor . | . . . . Propulsion 3 | . 1 2 . Treads . | . . . . Leg . | . . . . Wheel . | . . . . Hover . | . . . . Flight 3 | . 1 2 . Utility 3 | . 1 . 2 Device . | . . . . Storage . | . . . . Processor 3 | . 1 . 2 Hackware . | . . . . Protection . | . . . . Artifact . | . . . . Weapon 2 | . 1 1 . Energy Gun 1 | . . 1 . Energy Cannon . | . . . . Ballistic Gun . | . . . . Ballistic Cannon . | . . . . Launcher 1 | . 1 . . Special Weapon . | . . . . Impact Weapon . | . . . . Slashing Weapon . | . . . . Piercing Weapon . | . . . . Special Melee Weapon . | . . . . Unidentified Prototypes . | . . . . Parts Lost 2 | . . . 2 Power 1 | . . . 1 Propulsion . | . . . . Utility . | . . . . Weapon 1 | . . . 1 Highest Loss Streak 2 | . . . 2 Average Slot Usage (%) 88 | . 79 100 89 Engine 17 | . 22 18 8 Flight 25 | . 22 30 25 Processor 25 | . 22 18 36 Energy Gun 5 | . . 11 5 Launcher 13 | . 11 18 12 Naked Turns 32 | . 32 . . Heaviest Build 8 | . 6 8 8 Greatest Support 13 | 3 9 13 13 Greatest Overweight (x) 1 | . 1 . . Average Overweight (x) . | . . . . Largest Inventory Capacity . | . . . . Average Capacity . | . . . . Most Carried . | . . . . Average Carried . | . . . . Final Capacity . | . . . . Final Carried . | . . . . Class Distribution -------------------- 97% | Hacker-Mutant Dominant Class ---------------- Hacker-Mutant | -10/Materials Hacker-Mutant | -10/Mines Hacker-Mutant | -9/Materials Resources | -11 -10 -10 -9 ----------- Run | Scr Mat Min Mat Matter Collected 724 | 200 190 79 255 Remotely . | . . . . Salvage Created 767 | . 407 61 299 Parts 71 | . 26 11 34 Haulers Intercepted 1 | . . . 1 Recyclers Shooed . | . . . . Parts Field Recycled . | . . . . Retrieved Matter . | . . . . Parts Self-Destructed . | . . . . Prevented . | . . . . Kills | -11 -10 -10 -9 ------- Run | Scr Mat Min Mat Combat Hostiles Destroyed 44 | . 13 9 22 Melee 3 | . 3 . . AOE 41 | . 10 9 22 Classes Destroyed 8 | . 5 . 3 Worker 3 | . 1 . 2 Builder 3 | . 2 . 1 Tunneler 1 | . . . 1 Hauler 1 | . . . 1 Recycler 1 | . 1 . . Swarmer 25 | . 6 9 10 Grunt 15 | . 7 . 8 Sentry 4 | . . . 4 Best Kill Streak 16 | . 8 3 16 Combat Bots Only 13 | . 5 3 13 Max Kills in Single Turn 3 | . 2 3 3 Gunslinging . | . . . . Exploded 3 | . 2 3 3 Melee 1 | . 1 . . Uniques/NPCs Destroyed . | . . . . Combat | -11 -10 -10 -9 -------- Run | Scr Mat Min Mat Damage Taken 1103 | . 361 106 636 Core 954 | . 332 90 532 Absorbed by Shields . | . . . . Redirected to Core 530 | . 88 52 390 Core Remaining (%) 65 | 100 . 31 . Volleys Fired 62 | . 15 7 40 Largest 2 | . 1 2 1 Hottest 70 | . 30 70 30 Shots Fired 63 | . 15 8 40 Gun 1 | . . 1 . Cannon . | . . . . Launcher 62 | . 15 7 40 Special . | . . . . Kinetic . | . . . . Thermal . | . . . . Explosive 62 | . 15 7 40 Electromagnetic 1 | . . 1 . Robot Hit Streak 10 | . 7 1 10 Robot Miss Streak 3 | . 2 3 2 Penetration Max . | . . . . Secondary Targets . | . . . . Shots Hit Robots 43 | . 11 2 30 Core Hits 86 | . 30 11 45 Critical Hits . | . . . . Critical Kills . | . . . . Critical Parts Destroyed . | . . . . Melee Attacks . | . . . . Impact . | . . . . Slashing . | . . . . Piercing . | . . . . Sneak Attacks . | . . . . Combat Hostiles . | . . . . Follow-up Attacks . | . . . . Damage Inflicted 3080 | . 887 487 1706 Guns . | . . . . Cannons . | . . . . Explosions 3028 | . 835 487 1706 Melee . | . . . . Ramming 52 | . 52 . . Kinetic . | . . . . Thermal . | . . . . Explosive 2975 | . 782 487 1706 Electromagnetic 53 | . 53 . . Impact . | . . . . Slashing . | . . . . Piercing . | . . . . Highest Corruption 1 | . 1 1 . Average Corruption 1 | . 1 1 . Corruption Purged . | . . . . Effects 3 | . 2 1 . Message Errors 2 | . 1 1 . Data Loss (minor) 1 | . 1 . . Overload Shots . | . . . . Overflow Damage 66 | . . . 66 Projectiles . | . . . . Explosions 66 | . . . 66 Melee . | . . . . Knockbacks . | . . . . Impact . | . . . . Kinetic . | . . . . Secondary . | . . . . Self-Inflicted Damage 349 | . 64 55 230 Shots 10 | . 2 3 5 Rammed 13 | . 13 . . Targets Rammed 13 | . 13 . . Kicked . | . . . . Crushed . | . . . . Highest Temperature 19 | . 8 19 14 Average Temperature 5 | . 3 11 5 Received Heat Transfer 168 | . 81 . 87 Siege Activations . | . . . . Robots Corrupted . | . . . . Combat Hostiles . | . . . . Parts Fried . | . . . . Impact Corruptions . | . . . . Robots Melted . | . . . . Combat Hostiles . | . . . . Parts Melted . | . . . . Heat Transferred . | . . . . Parts Sabotaged . | . . . . Parts Stolen . | . . . . Parts Stripped . | . . . . Power Chain Reactions . | . . . . Missiles Intercepted . | . . . . Alert | -11 -10 -10 -9 ------- Run | Scr Mat Min Mat Peak Influence 609 | . 556 456 609 Average Influence 318 | . 246 351 403 Maximum Alert Level 2 | . 2 2 2 Low Security (%) 28 | 100 53 . 15 Level 1 45 | . 26 96 26 Level 2 26 | . 20 3 57 Level 3 . | . . . . Level 4 . | . . . . Level 5 . | . . . . High Security . | . . . . Max Security . | . . . . Squads Dispatched 8 | . 3 . 5 Investigation 5 | . 2 . 3 Extermination . | . . . . Reinforcement 3 | . 1 . 2 Assault . | . . . . Garrison . | . . . . Intercept . | . . . . Construction Impeded 1 | . . . 1 Haulers Reinforced . | . . . . Stealth | -11 -10 -10 -9 --------- Run | Scr Mat Min Mat Distress Signals 2 | . 2 . . Communications Jammed . | . . . . Distress Signals . | . . . . Times Spotted 55 | . 20 6 29 Peak Tracking Total 5 | . 5 3 5 Tactical Retreats 2 | . 1 . 1 Traps | -11 -10 -10 -9 ------- Run | Scr Mat Min Mat Traps Triggered 1 | . 1 . . Indirectly . | . . . . Trap Hack Attempts . | . . . . Triggered . | . . . . Disarmed . | . . . . Reprogrammed . | . . . . Reused . | . . . . Traps Extracted . | . . . . Installed . | . . . . Triggered . | . . . . Machines | -11 -10 -10 -9 ---------- Run | Scr Mat Min Mat Machines Disabled 10 | . 4 2 4 Max in Single Turn 3 | . 3 1 2 Machines Sabotaged . | . . . . Garrisons Compromised . | . . . . Overloaded Fab Kills . | . . . . Fab Network Shutdowns . | . . . . Hacking | -11 -10 -10 -9 --------- Run | Scr Mat Min Mat Machines Accessed 9 | . 6 . 3 Terminals 9 | . 6 . 3 Fabricators . | . . . . Repair Stations . | . . . . Recycling Units . | . . . . Scanalyzers . | . . . . Garrison Access . | . . . . Total Hacks 57 | . 38 . 19 Successful 37 | . 23 . 14 Failed 20 | . 15 . 5 Catastrophic 2 | . 2 . . Database Lockouts . | . . . . Manual 46 | . 33 . 13 Terminals 57 | . 38 . 19 Fabricators . | . . . . Repair Stations . | . . . . Recycling Units . | . . . . Scanalyzers . | . . . . Garrison Access . | . . . . Terminal Hacks 24 | . 16 . 8 Prototype ID Bank 14 | . 13 . 1 Level Access Points 1 | . 1 . . Branch Access Points 1 | . 1 . . Terminal Index 1 | . . . 1 Alert Level 2 | . . . 2 Unreport Threat 3 | . . . 3 Hauler Manifests 2 | . 1 . 1 Fabricator Hacks . | . . . . Repair Station Hacks . | . . . . Recycling Unit Hacks . | . . . . Scanalyzer . | . . . . Garrison Access Hacks . | . . . . Unauthorized Hacks 32 | . 17 . 15 Terminals 13 | . 7 . 6 Track 4 | . 2 . 2 Assimilate 2 | . 2 . . Botnet 6 | . 3 . 3 Operators 1 | . . . 1 Fabricators . | . . . . Repair Stations . | . . . . Recycling Units . | . . . . Scanalyzers . | . . . . Garrison Access . | . . . . Data Cores Recovered . | . . . . Used . | . . . . Hacking Detections 9 | . 6 . 3 Full Trace Events 3 | . 1 . 2 Feedback Events . | . . . . Feedback Blocked . | . . . . Robot Schematics Acquired . | . . . . Robots Built . | . . . . Matter . | . . . . Time . | . . . . Total Robot Build Rating . | . . . . Part Schematics Acquired . | . . . . Parts Built . | . . . . Matter . | . . . . Time . | . . . . Total Part Build Rating . | . . . . Parts Repaired . | . . . . Time . | . . . . Parts Recycled . | . . . . Recycled Matter . | . . . . Retrieved Matter . | . . . . Retrieved Components . | . . . . Parts Scanalyzed . | . . . . Part Schematics Acquired . | . . . . Parts Damaged . | . . . . Bothacking | -11 -10 -10 -9 ------------ Run | Scr Mat Min Mat Used RIF Installer . | . . . . Robots Hacked . | . . . . Non-combat . | . . . . Combat . | . . . . Robot Hacks Applied . | . . . . Relay Couplers Released . | . . . . Robots Rewired . | . . . . Allies Hacked . | . . . . Hacks Repelled . | . . . . Allies | -11 -10 -10 -9 -------- Run | Scr Mat Min Mat Total Allies 2 | . 2 . . Largest Group 2 | . 2 . . Highest-Rated Group 20 | . 20 . . Highest-Rated Ally 10 | . 10 . . Total Orders 3 | . 3 . . GOTO 2 | . 2 . . FOLLOW 1 | . 1 . . Ally Attacks . | . . . . Total Damage . | . . . . Kills . | . . . . Allies Corrupted . | . . . . Allies Melted . | . . . . Intel | -11 -10 -10 -9 ------- Run | Scr Mat Min Mat Robot Analysis Total . | . . . . Derelict Logs Recovered 1 | . . 1 . Drone Launches . | . . . . Drone Recoveries . | . . . . Exploration | -11 -10 -10 -9 ------------- Run | Scr Mat Min Mat Turns Passed 842 | 13 342 235 252 Spaces Moved 1630 | 27 704 563 336 Core 62 | 27 35 . . Treads . | . . . . Legs . | . . . . Wheels . | . . . . Hover . | . . . . Flight 1568 | . 669 563 336 Fastest Speed 37 | 50 40 37 37 Average Speed 39 | 50 40 37 37 Slowest Speed 120 | 50 120 40 37 Overloaded Moves . | . . . . Propulsion Burnouts . | . . . . Robots Hopped 19 | . 11 5 3 Cave-ins Triggered . | . . . . Exploration Rate (%) 62 | 3 93 99 54 Regions Visited 3 Branch Regions 1 Pre-discovered Areas . | . . . . Known Exits Taken 2 | . 1 1 . Unknown Exits Taken 1 | 1 . . . Scrap Searched 1 | . . 1 . Spaces Dug . | . . . . Terrain Destroyed 338 | . 67 38 233 Melee . | . . . . Projectile . | . . . . AOE 338 | . 67 38 233 Actions | -11 -10 -10 -9 --------- Run | Scr Mat Min Mat Total 1746 | 26 730 571 419 Wait 35 | . 6 2 27 Move 1589 | 26 681 552 330 Hop 19 | . 11 5 3 Pick Up . | . . . . Fast Attach 9 | . 4 2 3 Attach . | . . . . Detach . | . . . . Swap 1 | . . 1 . Drop 1 | . . 1 . Fire 62 | . 15 7 40 Melee . | . . . . Ram 13 | . 13 . . Kick . | . . . . Crush . | . . . . Escape Stasis . | . . . . Rewire . | . . . . Trap . | . . . . Miscellaneous 17 | . . 1 16 Route ------- -11/Scrapyard -10/Materials (discovered 5 exits: *Mat x3 / *Min x2) -10/Mines (discovered 2 exits: *Mat x2) -9/Materials (discovered 2 exits: [*Mat x2]) History --------- Turn | Location | Event 5 | -11/Scrapyard | Discovered new exit (range 16) 14 | -11/Scrapyard | Entered Materials 62 | -10/Materials | Identified exit to Mines 62 | -10/Materials | Identified exit to Materials 291 | -10/Materials | Reached level 2 318 | -10/Materials | Core integrity fell below 50% 325 | -10/Materials | Build established: Hacker-Mutant 356 | -10/Materials | Entered Mines 364 | -10/Mines | Reached level 3 415 | -10/Mines | Discovered exit to Materials (range 11) 422 | -10/Mines | Upgraded with Propulsion slot (x1) 422 | -10/Mines | Upgraded with Weapon slot (x1) 437 | -10/Mines | Met a Derelict bent on vengeance 591 | -10/Mines | Entered Materials 592 | -9/Materials | Core integrity fell below 50% 593 | -9/Materials | Reached level 4 604 | -9/Materials | Upgraded with Utility slot (x2) 679 | -9/Materials | Reached level 5 700 | -9/Materials | Discovered new exit (range 16) 716 | -9/Materials | Core integrity fell below 20% 754 | -9/Materials | Destroyed 13 combat bots 804 | -9/Materials | Reached level 6 810 | -9/Materials | Discovered new exit (range 16) 843 | -9/Materials | Destroyed by Y-45 Defender with Heavy Assault Rifle Last Messages --------------- Testing... Terminal linked with 1 system. Awaiting botnet instructions. >>Alert(Purge) Purged threat record, alert level lowered. >>Alert(Purge) Purged threat record, alert level lowered. >>Alert(Check) Current Alert Level: 1-Q 00814_ ALERT: Suspicious activity at Terminal M005. Dispatching Investigation squad. 00816_ The unstable cave ceiling collapses. 00819_ G-34 Mercenary destroyed. 00824_ Used Protomatter to restore core integrity (+30, depleted) 00832_ S-10 Pest destroyed. 00833_ The unstable cave ceiling collapses. 00836_ Y-45 Defender destroyed. 00836_ Electrolysis Chamber disabled. 00838_ The unstable cave ceiling collapses. 00841_ S-10 Pest destroyed. Map ----- +----------------------------------------------------+ | ???????????# #???????# #????? | | ???????????# #???????# #????? | | ???????????# #???????# #????? | | ???######### ########???????# #????? | | ??# # #??????????????# #????? | | ??# """ # #??????????????# #????? | | ??# """ # #############??? ?????? | | ??# """ # ??????????? | | ??# + ??????????? | | ??# # ??????????? | | ??# "" # ##### ####+#????????????? | | ??# S"" # ####??#?????????????????? | | ??# "" # #????????????????????? | | ??######### ###+##????????????????? | | ????####### #????????????????? | | ????# #????????????????? | | ????# " !==#????????????????? | | ????# T [ !==#????????????????? | | ????# " # != #????????????????? | | ????# # # #????????????????? | | ????# # ########????????????????? | | ????######## ##??????????????????????? | | ????#[ = # ##?????????????????????? | | ????# ##????????????????????? | | ????# """ ! #????????????????????? | | ????# """ %@ #????????????????????? | | ????# " < #??????????????????? | | ????# #?????????????????? | | ????### ! # [[//**#????????????????? | | ?????# % # [[//**#????????????????? | | ?????# Y= = [* #????????????????? | | ?????# ###[ * #????????????????? | | ???? ?? #???????????????? | | ???# # ?? #???????????????? | | ???# ## ##?? +???????????????? | | ???#??#a ????#/## #???????????????? | | ?????? ## ?????k#? #???????????????? | | ????? ?# ????? #?? ???????????????? | | ????? ??# ????? #?? ???????????????? | | ????????# ??????#????????????????????? | | ???????????????????????????????????????? | | ???????????????????????????????????????? | | ???????????????????????????????????????? | | ???????????????????????????????????????? | | ???????????????????????????????????????? | | ???????????????????????????????????????? | | ???????????????????????????????????????? | | ???????????????????????????????????????? | | | | | +----------------------------------------------------+ Best States ------------- Heat Dissipation 25 Energy Generation 10 Energy Capacity 125 Matter Stores 300 Matter Capacity 300 Sight Range 16 Terrain Scan Density 10 Evasion (%) 62 Targeting Accuracy 5 Salvage Targeting 2 Offensive Hacking 10 Defensive Hacking 15 Item Schematics ----------------- None Robot Schematics ------------------ None Fabricated ------------ Nothing Alien Tech Used ----------------- None Achievements -------------- None Challenges ------------ None RPGLIKE | -11 -10 -10 -9 --------- Run | Scr Mat Min Mat Levels Raised 5 | . 1 1 3 XP Earned 11404 | 3000 2036 1703 4665 XP Spent 4500 | . 2200 1000 1300 Upgrades 10 | . 6 2 2 Propulsion Slot 1 | . . 1 . Utility Slot 2 | . . . 2 Weapon Slot 1 | . . 1 . Mass Support 1 | . 1 . . Hack Attack % 2 | . 2 . . Hack Defense % 3 | . 3 . . Protomatter Created 143 | . 5 4 134 Integrity Restored 351 | . . 12 339 Core 351 | . . 12 339 Protomatter Decayed 139 | . . . 139 Game ------ Seed SuspensionTractorScanner Manual? 0 Play Time 00:16:43 Cumulative 141.8 hours Start 2020.01.17 @ 13:58:07 End 2020.01.17 @ 14:12:25 Sessions 1 Manual Loads 0 Difficulty Rogue Special Mode Winter2019/RPGLIKE Game No. 148 Rogue 148 Adventurer 0 Explorer 0 Win Type - Total 12 Types 11/0/0/1/0/0/0 Lore% 72 Gallery% 72 Achievement% 65 Wizard Run 0 Options --------- ASCII 0 Keyboard 0 Movement Numpad Keybinds 0 Fullscreen 2 Font 18/SmallcapsGlow Map View 76x50 Tactical HUD 1 Map Filters NONE Filters NONE Steam 1 RUN: 8ee634e1-66ce-4dcb-ae5c-22f89fa1cf39